[Event "Chpt France Universitaire 2024"]
[Site "Bastia, France"]
[Date "2024.04.06"]
[Round "5.3"]
[White "Gryshko, Vitalii"]
[Black "Dalaud, Dorian"]
[Result "0-1"]
[TimeControl "15min+5s"]
[WhiteElo "2288"]
[BlackElo "2307"]

1. e4 {[%clk 00:15:03]} {[%emt 00:00:06]} Nc6 {[%clk 00:15:05]} {[%emt
00:00:05]} 2. Nc3 {[%clk 00:15:03]} {[%emt 00:00:03]} Nf6 {[%clk 00:15:05]}
{[%emt 00:00:06]} 3. f4 {[%clk 00:15:03]} {[%emt 00:00:05]} d5 {[%clk
00:14:51]} {[%emt 00:00:19]} 4. e5 {[%clk 00:14:31]} {[%emt 00:00:37]} Ne4
{[%clk 00:14:51]} 5. d3 {[%clk 00:14:27]} {[%emt 00:00:10]} Nxc3 {[%clk
00:13:53]} {[%emt 00:01:03]} 6. bxc3 {[%clk 00:14:27]} {[%emt 00:00:01]} g5
{[%clk 00:13:53]} 7. Qh5 {[%clk 00:13:55]} {[%emt 00:00:36]} gxf4 {[%clk
00:12:09]} {[%emt 00:01:50]} 8. Nf3 {[%clk 00:13:55]} {[%emt 00:00:02]} Be6
{[%clk 00:11:39]} {[%emt 00:00:36]} 9. Ng5 {[%clk 00:13:40]} {[%emt 00:00:19]}
Qd7 {[%clk 00:11:39]} {[%emt 00:00:02]} 10. d4 {[%clk 00:12:48]} {[%emt
00:00:57]} O-O-O {[%clk 00:11:39]} {[%emt 00:00:03]} 11. Nxe6 {[%clk 00:10:50]}
Qxe6 {[%clk 00:11:39]} 12. Bd3 {[%clk 00:10:50]} Kb8 {[%clk 00:11:39]} 13. Bxf4
{[%clk 00:10:50]} f6 {[%clk 00:11:39]} 14. Bf5 {[%clk 00:10:50]} Qg8 {[%clk
00:11:39]} 15. exf6 {[%clk 00:09:12]} {[%emt 00:06:21]} e5 {[%clk 00:06:18]}
{[%emt 00:03:16]} 16. Bg3 {[%clk 00:07:31]} {[%emt 00:01:46]} exd4 {[%clk
00:06:14]} {[%emt 00:00:09]} 17. O-O {[%clk 00:07:31]} {[%emt 00:00:01]} Bd6
{[%clk 00:04:57]} {[%emt 00:01:22]} 18. Bh4 {[%clk 00:07:16]} {[%emt 00:00:20]}
Rf8 {[%clk 00:04:48]} {[%emt 00:00:14]} 19. c4 {[%clk 00:05:54]} {[%emt
00:01:27]} Be5 {[%clk 00:04:22]} {[%emt 00:00:31]} 20. Bd7 {[%clk 00:05:05]}
{[%emt 00:00:54]} Qg6 {[%clk 00:03:54]} {[%emt 00:00:34]} 21. Qf3 {[%clk
00:05:05]} {[%emt 00:00:03]} Qh6 {[%clk 00:02:42]} {[%emt 00:01:17]} 22. Bg3
{[%clk 00:02:55]} {[%emt 00:02:15]} Rxf6 {[%clk 00:01:52]} {[%emt 00:00:55]} 23.
Qxd5 {[%clk 00:01:48]} {[%emt 00:01:12]} Rd6 {[%clk 00:00:40]} {[%emt
00:01:17]} 24. Qf7 {[%clk 00:01:25]} {[%emt 00:00:28]} Bxg3 {[%clk 00:00:37]}
{[%emt 00:00:08]} 25. hxg3 {[%clk 00:01:08]} {[%emt 00:00:22]} Ne5 {[%clk
00:00:36]} {[%emt 00:00:06]} 26. Qe7 {[%clk 00:01:08]} {[%emt 00:00:01]} Nxd7
{[%clk 00:00:28]} {[%emt 00:00:14]} 27. c5 {[%clk 00:01:08]} {[%emt 00:00:01]}
Nxc5 {[%clk 00:00:24]} {[%emt 00:00:10]} 28. Rae1 {[%clk 00:01:08]} a6 {[%emt
00:00:09]} 29. Rf7 {[%clk 00:00:50]} {[%emt 00:00:23]} Rd7 {[%clk 00:00:20]} 30.
Qe5 {[%clk 00:00:44]} {[%emt 00:00:11]} Rxf7 {[%clk 00:00:15]} {[%emt
00:00:11]} 31. Qxh8+ {[%clk 00:00:44]} {[%emt 00:00:01]} Ka7 {[%clk 00:00:15]}
{[%emt 00:00:04]} 32. Qxd4 {[%clk 00:00:44]} {[%emt 00:00:01]} Qb6 {[%clk
00:00:15]} {[%emt 00:00:02]} 33. Kh2 {[%clk 00:00:44]} Rf6 {[%clk 00:00:12]}
{[%emt 00:00:09]} 34. Re7 {[%clk 00:00:32]} {[%emt 00:00:16]} Rh6+ {[%clk
00:00:12]} {[%emt 00:00:02]} 35. Kg1 {[%clk 00:00:32]} Na4 {[%clk 00:00:11]}
{[%emt 00:00:05]} 36. Qxb6+ {[%clk 00:00:31]} {[%emt 00:00:06]} Kxb6 {[%emt
00:00:01]} 37. g4 {[%clk 00:00:31]} Nc3 {[%clk 00:00:11]} {[%emt 00:00:03]} 38.
g5 {[%clk 00:00:31]} {[%emt 00:00:01]} Rg6 {[%clk 00:00:11]} 39. Rxh7 {[%clk
00:00:31]} Rxg5 {[%clk 00:00:11]} {[%emt 00:00:01]} 40. Kf2 {[%clk 00:00:31]}
Nxa2 {[%clk 00:00:11]} {[%emt 00:00:01]} 0-1

[Event "Chpt France Universitaire 2024"]
[Site "Bastia, France"]
[Date "2024.04.06"]
[Round "5.4"]
[White "Harutyunyan, Safar"]
[Black "Bosc, Seraphina"]
[Result "1-0"]
[TimeControl "15min+5s"]
[WhiteElo "2266"]
[BlackElo "2216"]

1. e4 {[%clk 00:15:05]} {[%emt 00:00:01]} e6 {[%clk 00:15:05]} {[%emt
00:00:01]} 2. d4 {[%clk 00:15:05]} d5 {[%clk 00:15:05]} {[%emt 00:00:02]} 3.
Nc3 {[%clk 00:15:05]} {[%emt 00:00:01]} Nf6 {[%clk 00:15:05]} {[%emt 00:00:02]}
4. e5 {[%clk 00:15:05]} {[%emt 00:00:01]} Nfd7 {[%clk 00:15:05]} {[%emt
00:00:02]} 5. Nce2 {[%clk 00:15:05]} c5 {[%clk 00:15:05]} {[%emt 00:00:05]} 6.
c3 {[%clk 00:15:05]} Nc6 {[%clk 00:15:05]} {[%emt 00:00:04]} 7. Nf3 {[%clk
00:15:05]} {[%emt 00:00:01]} b5 {[%clk 00:14:37]} {[%emt 00:00:33]} 8. Nf4
{[%clk 00:15:05]} {[%emt 00:00:05]} b4 {[%clk 00:13:27]} {[%emt 00:01:16]} 9.
Bd3 {[%clk 00:15:05]} {[%emt 00:00:02]} cxd4 {[%clk 00:12:46]} {[%emt
00:00:46]} 10. cxd4 {[%clk 00:15:05]} {[%emt 00:00:02]} Qb6 {[%clk 00:12:35]}
{[%emt 00:00:16]} 11. Be3 {[%clk 00:15:04]} {[%emt 00:00:05]} Ba6 {[%clk
00:12:15]} {[%emt 00:00:25]} 12. h4 {[%clk 00:15:04]} {[%emt 00:00:02]} h6
{[%clk 00:12:12]} {[%emt 00:00:08]} 13. g4 {[%clk 00:14:33]} {[%emt 00:00:37]}
Be7 {[%clk 00:11:49]} {[%emt 00:00:28]} 14. Rg1 {[%clk 00:13:48]} {[%emt
00:00:49]} b3 {[%clk 00:07:46]} {[%emt 00:04:08]} 15. a3 {[%clk 00:13:46]}
{[%emt 00:00:08]} Na5 {[%clk 00:07:20]} {[%emt 00:00:30]} 16. h5 {[%clk
00:11:20]} {[%emt 00:02:31]} Bxd3 {[%clk 00:06:50]} {[%emt 00:00:36]} 17. Qxd3
{[%clk 00:11:09]} {[%emt 00:00:16]} Nc4 {[%clk 00:06:50]} {[%emt 00:00:03]} 18.
Rb1 {[%clk 00:11:04]} {[%emt 00:00:10]} Rc8 {[%clk 00:05:08]} {[%emt 00:01:46]}
19. g5 {[%clk 00:10:51]} {[%emt 00:00:18]} hxg5 {[%clk 00:04:49]} {[%emt
00:00:25]} 20. Nxg5 {[%clk 00:10:51]} {[%emt 00:00:02]} Nxe3 {[%clk 00:04:23]}
{[%emt 00:00:30]} 21. Qxe3 {[%clk 00:10:29]} {[%emt 00:00:28]} Qa5+ {[%clk
00:03:47]} {[%emt 00:00:41]} 22. Kf1 {[%clk 00:09:14]} {[%emt 00:01:20]} Qb5+
{[%clk 00:03:23]} {[%emt 00:00:30]} 23. Ke1 {[%clk 00:08:19]} {[%emt 00:00:59]}
Qa5+ {[%clk 00:02:24]} {[%emt 00:01:04]} 24. Ke2 {[%clk 00:07:57]} {[%emt
00:00:27]} Qb5+ {[%clk 00:00:54]} {[%emt 00:01:35]} 25. Kf3 {[%clk 00:07:28]}
{[%emt 00:00:34]} Nb6 {[%clk 00:00:54]} 26. Rg3 {[%clk 00:05:12]} {[%emt
00:02:21]} Nc4 {[%clk 00:00:48]} {[%emt 00:00:12]} 27. Qd3 {[%clk 00:05:12]}
{[%emt 00:00:03]} Qa5 {[%clk 00:00:33]} {[%emt 00:00:20]} 28. Nxf7 {[%clk
00:03:51]} {[%emt 00:01:26]} Rf8 {[%clk 00:00:11]} {[%emt 00:00:27]} 29. Rxg7
{[%clk 00:03:16]} {[%emt 00:00:40]} Nd2+ {[%clk 00:00:11]} {[%emt 00:00:04]} 30.
Kg2 {[%clk 00:03:16]} {[%emt 00:00:01]} Nxb1 {[%clk 00:00:11]} {[%emt
00:00:04]} 31. Qg6 {[%clk 00:03:08]} {[%emt 00:00:12]} Qe1 {[%clk 00:00:06]}
{[%emt 00:00:10]} 32. Nd6+ {[%clk 00:03:00]} {[%emt 00:00:13]} Kd7 {[%clk
00:00:06]} {[%emt 00:00:01]} 33. Rxe7+ {[%clk 00:03:00]} {[%emt 00:00:03]} Kxe7
{[%clk 00:00:06]} {[%emt 00:00:04]} 34. Qg7+ {[%clk 00:03:00]} {[%emt
00:00:03]} 1-0

[Event "Chpt France Universitaire 2024"]
[Site "Bastia, France"]
[Date "2024.04.06"]
[Round "5.5"]
[White "Maache, Jawad"]
[Black "Crook, Oliver-James"]
[Result "1-0"]
[TimeControl "15min+5s"]
[WhiteElo "2154"]
[BlackElo "1924"]

1. d4 {[%clk 00:15:05]} {[%emt 00:00:03]} Nf6 {[%clk 00:15:05]} {[%emt
00:00:02]} 2. Nc3 {[%clk 00:15:05]} {[%emt 00:00:02]} d5 {[%clk 00:14:24]}
{[%emt 00:00:46]} 3. Bf4 {[%clk 00:15:05]} {[%emt 00:00:02]} c6 {[%clk
00:14:00]} {[%emt 00:00:29]} 4. e3 {[%clk 00:15:05]} {[%emt 00:00:03]} Bg4
{[%clk 00:13:29]} {[%emt 00:00:36]} 5. f3 {[%clk 00:15:05]} {[%emt 00:00:03]}
Bc8 {[%clk 00:13:22]} {[%emt 00:00:12]} 6. Bd3 {[%clk 00:14:46]} {[%emt
00:00:24]} Nbd7 {[%clk 00:12:19]} {[%emt 00:01:08]} 7. g4 {[%clk 00:11:49]}
{[%emt 00:03:01]} Qb6 {[%clk 00:11:28]} {[%emt 00:00:56]} 8. a3 {[%clk
00:11:43]} {[%emt 00:00:12]} g5 {[%clk 00:09:43]} {[%emt 00:01:49]} 9. Bxg5
{[%clk 00:10:52]} {[%emt 00:00:56]} h5 {[%clk 00:09:43]} 10. Bxf6 {[%clk
00:10:42]} {[%emt 00:00:16]} Nxf6 {[%clk 00:09:26]} {[%emt 00:00:22]} 11. g5
{[%clk 00:10:40]} {[%emt 00:00:07]} Nd7 {[%clk 00:08:53]} {[%emt 00:00:38]} 12.
Nge2 {[%clk 00:09:56]} {[%emt 00:00:49]} e5 {[%clk 00:08:53]} {[%emt 00:00:03]}
13. g6 {[%clk 00:09:04]} {[%emt 00:00:57]} Bh6 {[%clk 00:07:01]} {[%emt
00:01:57]} 14. Qd2 {[%clk 00:05:13]} {[%emt 00:03:57]} Qxb2 {[%clk 00:06:44]}
{[%emt 00:00:21]} 15. Kf2 {[%clk 00:05:13]} {[%emt 00:00:02]} Qb6 {[%clk
00:06:35]} {[%emt 00:00:14]} 16. gxf7+ {[%clk 00:05:08]} {[%emt 00:00:10]} Kxf7
{[%clk 00:06:35]} {[%emt 00:00:02]} 17. Rag1 {[%clk 00:05:08]} {[%emt
00:00:05]} exd4 {[%clk 00:06:20]} {[%emt 00:00:20]} 18. Bg6+ {[%clk 00:05:05]}
{[%emt 00:00:08]} Ke7 {[%clk 00:06:04]} {[%emt 00:00:18]} 19. Qxd4 {[%clk
00:03:09]} {[%emt 00:02:04]} Qxd4 {[%clk 00:06:04]} {[%emt 00:00:01]} 20. Nxd4
{[%clk 00:03:09]} {[%emt 00:00:02]} Ne5 {[%clk 00:06:04]} {[%emt 00:00:04]} 21.
h3 {[%clk 00:02:12]} {[%emt 00:01:02]} Bd7 {[%clk 00:05:27]} {[%emt 00:00:42]}
22. f4 {[%clk 00:01:57]} {[%emt 00:00:21]} Raf8 {[%clk 00:05:21]} {[%emt
00:00:10]} 23. Ke2 {[%clk 00:01:57]} {[%emt 00:00:04]} Nc4 {[%clk 00:05:11]}
{[%emt 00:00:15]} 24. Bxh5 {[%clk 00:01:29]} {[%emt 00:00:34]} Nxe3 {[%clk
00:03:08]} {[%emt 00:02:08]} 25. Bg4 {[%clk 00:01:08]} {[%emt 00:00:26]} Rxf4
{[%clk 00:01:58]} {[%emt 00:01:14]} 26. Kxe3 {[%clk 00:00:25]} {[%emt
00:00:48]} Rxg4+ {[%clk 00:01:30]} {[%emt 00:00:33]} 27. Kd3 {[%clk 00:00:25]}
{[%emt 00:00:01]} Rxg1 {[%clk 00:00:41]} {[%emt 00:00:54]} 28. Rxg1 {[%clk
00:00:25]} Bxh3 {[%emt 00:00:19]} 29. Rb1 {[%clk 00:00:25]} Kd6 {[%clk
00:00:22]} {[%emt 00:00:12]} 30. Rxb7 {[%clk 00:00:25]} {[%emt 00:00:04]} Rg8
{[%clk 00:00:21]} {[%emt 00:00:05]} 31. Nce2 {[%clk 00:00:17]} {[%emt
00:00:13]} Bf1 {[%clk 00:00:21]} {[%emt 00:00:03]} 32. Rf7 {[%clk 00:00:12]}
{[%emt 00:00:11]} Rg3+ {[%clk 00:00:21]} {[%emt 00:00:05]} 33. Rf3 {[%clk
00:00:12]} {[%emt 00:00:01]} Rg2 {[%clk 00:00:21]} {[%emt 00:00:04]} 34. Rf6+
{[%clk 00:00:12]} {[%emt 00:00:02]} Kc7 {[%clk 00:00:21]} {[%emt 00:00:03]} 35.
Rxh6 {[%clk 00:00:12]} {[%emt 00:00:03]} c5 {[%clk 00:00:21]} 36. Rc6+ {[%clk
00:00:12]} Kb7 {[%clk 00:00:21]} {[%emt 00:00:03]} 37. Rxc5 {[%clk 00:00:12]}
{[%emt 00:00:02]} Rg3+ {[%clk 00:00:21]} {[%emt 00:00:02]} 38. Kd2 {[%clk
00:00:12]} {[%emt 00:00:05]} Rxa3 {[%clk 00:00:21]} {[%emt 00:00:01]} 39. Rxd5
{[%clk 00:00:12]} {[%emt 00:00:03]} a5 {[%clk 00:00:16]} {[%emt 00:00:09]} 40.
Nc3 {[%clk 00:00:11]} {[%emt 00:00:06]} Bc4 {[%clk 00:00:15]} {[%emt 00:00:06]}
41. Rc5 {[%clk 00:00:11]} {[%emt 00:00:02]} Bg8 {[%clk 00:00:15]} {[%emt
00:00:02]} 42. Rb5+ {[%clk 00:00:11]} {[%emt 00:00:05]} Ka6 {[%clk 00:00:15]}
{[%emt 00:00:02]} 43. Rb1 {[%clk 00:00:11]} {[%emt 00:00:02]} Bf7 {[%clk
00:00:09]} {[%emt 00:00:09]} 44. Ndb5 {[%clk 00:00:10]} {[%emt 00:00:06]} Ra2
{[%clk 00:00:09]} {[%emt 00:00:06]} 45. Nxa2 {[%clk 00:00:10]} {[%emt
00:00:02]} Bxa2 {[%clk 00:00:09]} 46. Nc7+ {[%clk 00:00:10]} {[%emt 00:00:01]}
Ka7 {[%clk 00:00:09]} {[%emt 00:00:01]} 47. Ra1 {[%clk 00:00:10]} {[%emt
00:00:02]} Bg8 {[%clk 00:00:09]} {[%emt 00:00:02]} 48. Nb5+ {[%clk 00:00:10]}
{[%emt 00:00:04]} Kb6 {[%clk 00:00:09]} {[%emt 00:00:01]} 49. Nc3 {[%clk
00:00:10]} {[%emt 00:00:02]} Bc4 {[%clk 00:00:09]} {[%emt 00:00:03]} 50. Ra4
{[%clk 00:00:10]} {[%emt 00:00:03]} Bg8 {[%clk 00:00:09]} {[%emt 00:00:02]} 51.
Rg4 {[%clk 00:00:10]} {[%emt 00:00:04]} Bf7 {[%clk 00:00:09]} {[%emt 00:00:04]}
52. Na4+ {[%clk 00:00:10]} {[%emt 00:00:04]} Kb5 {[%clk 00:00:09]} {[%emt
00:00:04]} 53. Kc3 {[%clk 00:00:10]} {[%emt 00:00:03]} Ba2 {[%clk 00:00:07]}
{[%emt 00:00:07]} 54. Nb2 {[%clk 00:00:10]} {[%emt 00:00:04]} Bf7 {[%clk
00:00:07]} {[%emt 00:00:02]} 55. Rg5+ {[%clk 00:00:10]} {[%emt 00:00:02]} Ka6
{[%clk 00:00:07]} {[%emt 00:00:02]} 56. Nc4 {[%clk 00:00:10]} {[%emt 00:00:02]}
a4 {[%clk 00:00:07]} {[%emt 00:00:02]} 57. Ra5+ {[%clk 00:00:10]} {[%emt
00:00:01]} Kb7 {[%clk 00:00:07]} {[%emt 00:00:01]} 58. Rxa4 {[%clk 00:00:10]}
{[%emt 00:00:06]} Kc6 {[%clk 00:00:07]} {[%emt 00:00:02]} 59. Ne5+ {[%clk
00:00:10]} {[%emt 00:00:01]} Kd5 {[%emt 00:00:05]} 1-0

[Event "Chpt France Universitaire 2024"]
[Site "Bastia, France"]
[Date "2024.04.06"]
[Round "5.6"]
[White "Morison, Julien"]
[Black "Cahen, Alexis"]
[Result "1/2-1/2"]
[TimeControl "15min+5s"]
[WhiteElo "1926"]
[BlackElo "2060"]

1. e4 {[%clk 00:15:05]} c5 {[%clk 00:15:05]} {[%emt 00:00:02]} 2. b4 {[%clk
00:15:05]} {[%emt 00:00:01]} cxb4 {[%clk 00:15:03]} {[%emt 00:00:07]} 3. a3
{[%clk 00:15:05]} {[%emt 00:00:01]} d5 {[%clk 00:15:03]} {[%emt 00:00:02]} 4.
exd5 {[%clk 00:15:05]} {[%emt 00:00:01]} Qxd5 {[%clk 00:15:03]} {[%emt
00:00:01]} 5. Nf3 {[%clk 00:15:05]} {[%emt 00:00:02]} e6 {[%clk 00:14:53]}
{[%emt 00:00:15]} 6. axb4 {[%clk 00:15:05]} {[%emt 00:00:05]} Bxb4 {[%clk
00:14:53]} {[%emt 00:00:04]} 7. Ba3 {[%clk 00:14:38]} {[%emt 00:00:30]} Be7
{[%clk 00:14:19]} {[%emt 00:00:41]} 8. Nc3 {[%clk 00:14:37]} {[%emt 00:00:05]}
Qd8 {[%clk 00:14:13]} {[%emt 00:00:12]} 9. Bd3 {[%clk 00:13:40]} {[%emt
00:01:02]} Nf6 {[%clk 00:14:07]} {[%emt 00:00:11]} 10. h4 {[%clk 00:13:21]}
{[%emt 00:00:24]} Nc6 {[%clk 00:14:00]} {[%emt 00:00:11]} 11. Rh3 {[%clk
00:12:47]} {[%emt 00:00:40]} e5 {[%clk 00:13:35]} {[%emt 00:00:31]} 12. Rg3
{[%clk 00:12:16]} {[%emt 00:00:35]} Nh5 {[%clk 00:12:59]} {[%emt 00:00:40]} 13.
Bxe7 {[%clk 00:12:16]} {[%emt 00:00:05]} Qxe7 {[%clk 00:12:38]} {[%emt
00:00:26]} 14. Rg5 {[%clk 00:11:53]} {[%emt 00:00:29]} g6 {[%clk 00:11:28]}
{[%emt 00:01:15]} 15. Be4 {[%clk 00:09:49]} {[%emt 00:02:09]} f6 {[%clk
00:10:37]} {[%emt 00:00:55]} 16. Nd5 {[%clk 00:09:08]} {[%emt 00:00:46]} Qg7
{[%clk 00:08:45]} {[%emt 00:01:56]} 17. Rxh5 {[%clk 00:07:46]} {[%emt
00:01:27]} gxh5 {[%clk 00:08:37]} {[%emt 00:00:10]} 18. Nb6 {[%clk 00:06:43]}
{[%emt 00:01:11]} Rb8 {[%clk 00:08:21]} {[%emt 00:00:21]} 19. Nc4 {[%clk
00:05:52]} {[%emt 00:00:57]} Qxg2 {[%clk 00:06:22]} {[%emt 00:02:03]} 20. Ne3
{[%clk 00:05:12]} {[%emt 00:00:46]} Qh1+ {[%clk 00:05:53]} {[%emt 00:00:34]} 21.
Nf1 {[%clk 00:05:12]} {[%emt 00:00:02]} Bh3 {[%clk 00:05:13]} {[%emt 00:00:45]}
22. Bd3 {[%clk 00:04:26]} {[%emt 00:00:51]} e4 {[%clk 00:04:34]} {[%emt
00:00:44]} 23. Ng5 {[%clk 00:03:56]} {[%emt 00:00:34]} Bg4 {[%clk 00:03:37]}
{[%emt 00:01:02]} 24. Be2 {[%clk 00:02:39]} {[%emt 00:01:22]} fxg5 {[%clk
00:02:39]} {[%emt 00:01:03]} 25. Bxg4 {[%clk 00:02:39]} {[%emt 00:00:03]} hxg4
{[%clk 00:02:35]} {[%emt 00:00:09]} 26. Qxg4 {[%clk 00:02:39]} {[%emt
00:00:02]} Qxh4 {[%clk 00:01:53]} {[%emt 00:00:47]} 27. Qe6+ {[%clk 00:02:37]}
{[%emt 00:00:07]} Ne7 {[%clk 00:01:53]} {[%emt 00:00:01]} 28. Ra5 {[%clk
00:00:45]} {[%emt 00:01:57]} Rf8 {[%clk 00:01:41]} {[%emt 00:00:16]} 29. Ng3
{[%clk 00:00:45]} {[%emt 00:00:05]} Rc8 {[%emt 00:01:13]} 30. Re5 {[%clk
00:00:41]} {[%emt 00:00:08]} g4 {[%clk 00:00:24]} {[%emt 00:00:16]} 31. Qxc8+
{[%clk 00:00:41]} {[%emt 00:00:02]} Kf7 {[%clk 00:00:24]} {[%emt 00:00:02]} 32.
Qe6+ {[%clk 00:00:41]} Ke8 {[%clk 00:00:21]} {[%emt 00:00:08]} 33. Nxe4 {[%clk
00:00:41]} {[%emt 00:00:01]} Qh1+ {[%clk 00:00:19]} {[%emt 00:00:07]} 34. Ke2
{[%clk 00:00:41]} {[%emt 00:00:02]} Qf3+ {[%clk 00:00:19]} {[%emt 00:00:01]} 35.
Ke1 {[%clk 00:00:41]} {[%emt 00:00:01]} Qh1+ {[%clk 00:00:09]} {[%emt
00:00:15]} 36. Ke2 {[%clk 00:00:41]} {[%emt 00:00:01]} Qf3+ {[%clk 00:00:09]}
37. Ke1 {[%clk 00:00:39]} {[%emt 00:00:07]} 1/2-1/2

[Event "Chpt France Universitaire 2024"]
[Site "Bastia, France"]
[Date "2024.04.06"]
[Round "5.7"]
[White "Budak, Rewi"]
[Black "Rollot, Florence"]
[Result "1-0"]
[TimeControl "15min+5s"]
[WhiteElo "2112"]
[BlackElo "2010"]

1. e4 {[%clk 00:15:05]} {[%emt 00:00:03]} d5 {[%clk 00:15:05]} {[%emt
00:00:02]} 2. Nc3 {[%clk 00:15:05]} {[%emt 00:00:02]} d4 {[%clk 00:15:02]}
{[%emt 00:00:08]} 3. Nce2 {[%clk 00:15:05]} {[%emt 00:00:02]} e5 {[%clk
00:14:55]} {[%emt 00:00:12]} 4. f4 {[%clk 00:14:07]} {[%emt 00:01:04]} d3
{[%clk 00:12:59]} {[%emt 00:02:01]} 5. cxd3 {[%clk 00:13:44]} {[%emt 00:00:28]}
Qxd3 {[%clk 00:12:59]} {[%emt 00:00:02]} 6. Nc3 {[%clk 00:13:41]} {[%emt
00:00:08]} Qd8 {[%clk 00:12:18]} {[%emt 00:00:46]} 7. Nf3 {[%clk 00:13:39]}
{[%emt 00:00:08]} Bg4 {[%clk 00:12:08]} {[%emt 00:00:14]} 8. Qa4+ {[%clk
00:13:23]} {[%emt 00:00:21]} Bd7 {[%clk 00:10:48]} {[%emt 00:01:26]} 9. Qb3
{[%clk 00:13:23]} {[%emt 00:00:03]} Nc6 {[%clk 00:10:34]} {[%emt 00:00:18]} 10.
fxe5 {[%clk 00:13:14]} {[%emt 00:00:14]} Bc5 {[%clk 00:10:05]} {[%emt
00:00:34]} 11. Qc4 {[%clk 00:10:44]} {[%emt 00:02:36]} Bb6 {[%clk 00:08:45]}
{[%emt 00:01:25]} 12. d4 {[%clk 00:10:44]} {[%emt 00:00:04]} Bg4 {[%clk
00:08:37]} {[%emt 00:00:14]} 13. Bg5 {[%clk 00:09:33]} {[%emt 00:01:16]} f6
{[%clk 00:06:21]} {[%emt 00:02:21]} 14. exf6 {[%clk 00:09:33]} {[%emt
00:00:01]} gxf6 {[%clk 00:06:21]} {[%emt 00:00:02]} 15. Be3 {[%clk 00:09:33]}
{[%emt 00:00:03]} Bxf3 {[%clk 00:06:17]} {[%emt 00:00:10]} 16. gxf3 {[%clk
00:09:32]} {[%emt 00:00:06]} Bxd4 {[%clk 00:06:13]} {[%emt 00:00:09]} 17. Rd1
{[%clk 00:08:57]} {[%emt 00:00:40]} Bxc3+ {[%clk 00:06:13]} {[%emt 00:00:04]}
18. bxc3 {[%clk 00:06:32]} {[%emt 00:02:29]} Qe7 {[%clk 00:06:06]} {[%emt
00:00:12]} 19. Rg1 {[%clk 00:06:30]} {[%emt 00:00:06]} Qf7 {[%clk 00:02:24]}
{[%emt 00:03:48]} 20. Qxf7+ {[%clk 00:05:47]} {[%emt 00:00:49]} Kxf7 {[%clk
00:02:24]} {[%emt 00:00:01]} 21. Rd7+ {[%clk 00:05:47]} Nge7 {[%clk 00:02:23]}
{[%emt 00:00:06]} 22. Rxc7 {[%clk 00:05:35]} {[%emt 00:00:17]} Rac8 {[%clk
00:01:43]} {[%emt 00:00:45]} 23. Bc4+ {[%clk 00:05:31]} {[%emt 00:00:09]} Ke8
{[%clk 00:01:33]} {[%emt 00:00:15]} 24. Rxb7 {[%clk 00:05:31]} {[%emt
00:00:02]} Ne5 {[%clk 00:01:31]} {[%emt 00:00:07]} 25. Bb5+ {[%clk 00:05:31]}
{[%emt 00:00:01]} Kf7 {[%clk 00:01:25]} {[%emt 00:00:11]} 26. Ke2 {[%clk
00:02:38]} {[%emt 00:02:58]} Rxc3 {[%clk 00:01:22]} {[%emt 00:00:08]} 27. Bh6
{[%clk 00:02:38]} {[%emt 00:00:01]} Ke6 {[%clk 00:00:28]} {[%emt 00:00:59]} 28.
Rg7 {[%clk 00:01:32]} {[%emt 00:01:12]} N7g6 {[%clk 00:00:25]} {[%emt
00:00:08]} 29. f4 {[%clk 00:00:49]} {[%emt 00:00:48]} Nf3 {[%clk 00:00:25]}
{[%emt 00:00:03]} 30. f5+ {[%clk 00:00:12]} {[%emt 00:00:42]} Ke5 {[%clk
00:00:24]} {[%emt 00:00:05]} 31. fxg6 {[%clk 00:00:12]} {[%emt 00:00:01]} hxg6
{[%clk 00:00:24]} {[%emt 00:00:04]} 32. Rge7+ {[%clk 00:00:12]} {[%emt
00:00:02]} Kd4 {[%clk 00:00:23]} {[%emt 00:00:07]} 33. Rbd7+ {[%clk 00:00:12]}
{[%emt 00:00:03]} Kc5 {[%clk 00:00:23]} {[%emt 00:00:02]} 34. Rd5+ {[%clk
00:00:12]} {[%emt 00:00:01]} Kb4 {[%clk 00:00:23]} {[%emt 00:00:01]} 35. Bf4
{[%clk 00:00:11]} {[%emt 00:00:07]} Rh4 {[%clk 00:00:22]} {[%emt 00:00:06]} 36.
Bd6+ {[%clk 00:00:11]} {[%emt 00:00:02]} Ka5 {[%clk 00:00:22]} {[%emt
00:00:03]} 37. Bd3+ {[%clk 00:00:11]} {[%emt 00:00:02]} Kb6 {[%clk 00:00:22]}
{[%emt 00:00:02]} 38. Bc7+ {[%clk 00:00:11]} {[%emt 00:00:05]} Kb7 {[%clk
00:00:20]} {[%emt 00:00:07]} 39. Bg3+ {[%clk 00:00:11]} {[%emt 00:00:01]} Kb6
{[%clk 00:00:20]} {[%emt 00:00:04]} 40. Kxf3 {[%clk 00:00:11]} {[%emt
00:00:03]} Rh5 {[%clk 00:00:19]} {[%emt 00:00:05]} 41. Re6+ {[%clk 00:00:11]}
{[%emt 00:00:02]} Rc6 {[%clk 00:00:19]} {[%emt 00:00:05]} 42. Rb5+ {[%clk
00:00:11]} {[%emt 00:00:03]} Rxb5 {[%clk 00:00:19]} {[%emt 00:00:05]} 43. Rxc6+
{[%clk 00:00:11]} {[%emt 00:00:01]} Kxc6 {[%clk 00:00:19]} {[%emt 00:00:01]} 44.
Bxb5+ {[%clk 00:00:11]} {[%emt 00:00:02]} Kxb5 {[%clk 00:00:19]} {[%emt
00:00:01]} 45. Bd6 {[%clk 00:00:11]} {[%emt 00:00:04]} Kc4 {[%clk 00:00:19]}
{[%emt 00:00:05]} 46. Kf4 {[%clk 00:00:11]} {[%emt 00:00:03]} Kd4 {[%clk
00:00:19]} {[%emt 00:00:03]} 47. Be7 {[%clk 00:00:11]} {[%emt 00:00:01]} a5
{[%clk 00:00:15]} {[%emt 00:00:09]} 48. Bxf6+ {[%clk 00:00:11]} {[%emt
00:00:02]} Kd3 {[%clk 00:00:15]} {[%emt 00:00:02]} 49. a4 {[%clk 00:00:11]}
{[%emt 00:00:02]} Kc4 {[%clk 00:00:15]} {[%emt 00:00:01]} 50. Bd8 {[%clk
00:00:11]} Kb4 {[%clk 00:00:15]} {[%emt 00:00:01]} 51. Kg5 {[%clk 00:00:11]}
Kxa4 {[%clk 00:00:15]} {[%emt 00:00:02]} 52. e5 {[%clk 00:00:11]} {[%emt
00:00:01]} Kb5 {[%clk 00:00:15]} 53. e6 {[%clk 00:00:11]} {[%emt 00:00:01]} Kc6
{[%clk 00:00:15]} 54. Bxa5 {[%clk 00:00:11]} {[%emt 00:00:04]} Kd6 {[%clk
00:00:15]} 55. Kf6 {[%clk 00:00:11]} {[%emt 00:00:01]} g5 {[%clk 00:00:15]}
{[%emt 00:00:04]} 56. Bb4+ {[%clk 00:00:11]} {[%emt 00:00:03]} Kc7 {[%clk
00:00:15]} {[%emt 00:00:06]} 57. Kxg5 {[%clk 00:00:11]} {[%emt 00:00:01]} 1-0